[Event "*** SCC Grand Prix: Titled Tuesday Blitz"]
[Site "Chess.com"]
[Date "2020.06.23"]
[Round "5"]
[White "gmcorrales"]
[Black "topotun"]
[Result "0-1"]
[WhiteElo "2811"]
[BlackElo "2706"]
[TimeControl "180+1"]
[EndTime "10:56:07 PDT"]
[Termination "topotun won on time"]

1. e4 {[%clk 0:02:45.5]} 1... c5 {[%clk 0:02:53.5]} 2. Nf3 {[%clk 0:02:45.4]}
2... e6 {[%clk 0:02:53.9]} 3. d4 {[%clk 0:02:45.8]} 3... cxd4 {[%clk 0:02:54.8]}
4. Nxd4 {[%clk 0:02:46.7]} 4... Nc6 {[%clk 0:02:55.3]} 5. Nc3 {[%clk 0:02:46.3]}
5... Qc7 {[%clk 0:02:55.4]} 6. Be3 {[%clk 0:02:46.3]} 6... a6 {[%clk 0:02:54.4]}
7. Qd2 {[%clk 0:02:46.1]} 7... Nf6 {[%clk 0:02:54.5]} 8. O-O-O {[%clk 0:02:46]}
8... b5 {[%clk 0:02:54.5]} 9. Nxc6 {[%clk 0:02:26.7]} 9... Qxc6 {[%clk
0:02:54.1]} 10. e5 {[%clk 0:01:26.9]} 10... b4 {[%clk 0:02:53.9]} 11. Ne2 {[%clk
0:01:26.2]} 11... Nd5 {[%clk 0:02:34.4]} 12. Nd4 {[%clk 0:01:00]} 12... Qc7
{[%clk 0:02:08.5]} 13. f4 {[%clk 0:00:56.1]} 13... Bb7 {[%clk 0:01:57.8]} 14.
Bf2 {[%clk 0:00:54.3]} 14... g6 {[%clk 0:01:55.1]} 15. h4 {[%clk 0:00:54.1]}
15... h5 {[%clk 0:01:52.7]} 16. Kb1 {[%clk 0:00:48.2]} 16... Bh6 {[%clk
0:01:50.6]} 17. Ne2 {[%clk 0:00:45.5]} 17... Rc8 {[%clk 0:01:47.2]} 18. Rc1
{[%clk 0:00:13]} 18... a5 {[%clk 0:01:36]} 19. Rh3 {[%clk 0:00:12.9]} 19... a4
{[%clk 0:01:36]} 20. Rd3 {[%clk 0:00:12.2]} 20... O-O {[%clk 0:01:21.9]} 21. g3
{[%clk 0:00:12.4]} 21... a3 {[%clk 0:01:16.9]} 22. b3 {[%clk 0:00:11.8]} 22...
Ba6 {[%clk 0:01:17.5]} 23. Rd4 {[%clk 0:00:09.4]} 23... d6 {[%clk 0:00:58.4]}
24. Rxd5 {[%clk 0:00:06.6]} 24... exd5 {[%clk 0:00:57.5]} 25. exd6 {[%clk
0:00:05.6]} 25... Qxd6 {[%clk 0:00:54.7]} 26. Be3 {[%clk 0:00:06]} 26... Bxe2
{[%clk 0:00:53.4]} 27. Bxe2 {[%clk 0:00:06.2]} 27... Bg7 {[%clk 0:00:53.9]} 28.
Bd4 {[%clk 0:00:05.5]} 28... Bxd4 {[%clk 0:00:49]} 29. Qxd4 {[%clk 0:00:06.4]}
29... Qc5 {[%clk 0:00:49.5]} 30. Qxc5 {[%clk 0:00:05.7]} 30... Rxc5 {[%clk
0:00:49]} 31. Rd1 {[%clk 0:00:06.6]} 31... Re8 {[%clk 0:00:47.1]} 32. Bf3 {[%clk
0:00:05.9]} 32... Re3 {[%clk 0:00:46.8]} 33. Bxd5 {[%clk 0:00:06.2]} 33... Rxd5
{[%clk 0:00:46.2]} 0-1

[Event "*** SCC Grand Prix: Titled Tuesday Blitz"]
[Site "Chess.com"]
[Date "2020.06.23"]
[Round "5"]
[White "sertalzin"]
[Black "Mikhal867"]
[Result "0-1"]
[WhiteElo "2024"]
[BlackElo "2319"]
[TimeControl "180+1"]
[EndTime "10:56:07 PDT"]
[Termination "Mikhal867 won on time"]

1. d4 {[%clk 0:03:00.9]} 1... g6 {[%clk 0:02:58.9]} 2. c4 {[%clk 0:02:59.3]}
2... Bg7 {[%clk 0:02:57.7]} 3. e4 {[%clk 0:02:58.4]} 3... d6 {[%clk 0:02:56.6]}
4. Nc3 {[%clk 0:02:56.7]} 4... Nd7 {[%clk 0:02:54.8]} 5. f4 {[%clk 0:02:55.9]}
5... e5 {[%clk 0:02:52.1]} 6. fxe5 {[%clk 0:02:54.6]} 6... dxe5 {[%clk
0:02:51.2]} 7. d5 {[%clk 0:02:53.6]} 7... Ne7 {[%clk 0:02:44.7]} 8. Nf3 {[%clk
0:02:47]} 8... O-O {[%clk 0:02:43.1]} 9. Bd3 {[%clk 0:02:45.8]} 9... Nc5 {[%clk
0:02:39.8]} 10. Bc2 {[%clk 0:02:43.5]} 10... f5 {[%clk 0:02:38.6]} 11. Be3
{[%clk 0:02:37.6]} 11... Nxe4 {[%clk 0:02:36.6]} 12. Nxe4 {[%clk 0:02:34.7]}
12... fxe4 {[%clk 0:02:36.2]} 13. Bxe4 {[%clk 0:02:34]} 13... Nf5 {[%clk
0:02:35.5]} 14. Bc5 {[%clk 0:02:32.5]} 14... Rf7 {[%clk 0:02:19.1]} 15. O-O
{[%clk 0:02:30.8]} 15... b6 {[%clk 0:02:16.3]} 16. Bf2 {[%clk 0:02:27.3]} 16...
Nd6 {[%clk 0:02:10.6]} 17. Bh4 {[%clk 0:02:00.3]} 17... Qf8 {[%clk 0:02:08.7]}
18. Qc2 {[%clk 0:01:35.4]} 18... Nxe4 {[%clk 0:01:55.3]} 19. Qxe4 {[%clk
0:01:33.6]} 19... Rf4 {[%clk 0:01:54.9]} 20. Qe3 {[%clk 0:01:10.1]} 20... e4
{[%clk 0:01:51.6]} 21. Ng5 {[%clk 0:01:00.2]} 21... Be5 {[%clk 0:01:31.2]} 22.
Bg3 {[%clk 0:00:56.2]} 22... Rxf1+ {[%clk 0:01:22.8]} 23. Rxf1 {[%clk
0:00:51.8]} 23... Qg7 {[%clk 0:01:21.7]} 24. Qxe4 {[%clk 0:00:40.2]} 24... Bd4+
{[%clk 0:01:16.8]} 25. Kh1 {[%clk 0:00:35.1]} 25... Bf5 {[%clk 0:01:15.6]} 26.
Rxf5 {[%clk 0:00:25.4]} 26... gxf5 {[%clk 0:01:14.4]} 27. Qe6+ {[%clk
0:00:23.6]} 27... Kf8 {[%clk 0:01:11.7]} 28. Bxc7 {[%clk 0:00:13.5]} 28... Qxc7
{[%clk 0:01:03.5]} 29. Qxf5+ {[%clk 0:00:10.5]} 29... Ke8 {[%clk 0:01:03.4]} 30.
Ne6 {[%clk 0:00:10.1]} 30... Qe5 {[%clk 0:00:52.1]} 31. Qf8+ {[%clk 0:00:03.3]}
31... Kd7 {[%clk 0:00:51.7]} 32. Qf7+ {[%clk 0:00:01.8]} 32... Kd6 {[%clk
0:00:51.5]} 0-1

[Event "*** SCC Grand Prix: Titled Tuesday Blitz"]
[Site "Chess.com"]
[Date "2020.06.23"]
[Round "5"]
[White "ArnieChipmunk"]
[Black "gumimis"]
[Result "0-1"]
[WhiteElo "2326"]
[BlackElo "2157"]
[TimeControl "180+1"]
[EndTime "10:56:11 PDT"]
[Termination "gumimis won by resignation"]

1. e4 {[%clk 0:03:00.8]} 1... c5 {[%clk 0:02:59.2]} 2. Nf3 {[%clk 0:03:00.9]}
2... d6 {[%clk 0:02:59.4]} 3. d4 {[%clk 0:03:01.4]} 3... cxd4 {[%clk 0:02:59.8]}
4. Nxd4 {[%clk 0:03:02.3]} 4... Nf6 {[%clk 0:03:00.2]} 5. Nc3 {[%clk 0:03:03]}
5... a6 {[%clk 0:03:00.7]} 6. Bg5 {[%clk 0:03:02.8]} 6... e6 {[%clk 0:02:59.9]}
7. f4 {[%clk 0:03:02.1]} 7... h6 {[%clk 0:02:59.7]} 8. Bh4 {[%clk 0:03:00.9]}
8... Qb6 {[%clk 0:02:59.8]} 9. Qd2 {[%clk 0:02:59.6]} 9... Qxb2 {[%clk
0:02:59.7]} 10. Rb1 {[%clk 0:02:57.6]} 10... Qa3 {[%clk 0:03:00]} 11. f5 {[%clk
0:02:57.8]} 11... Be7 {[%clk 0:02:58.7]} 12. fxe6 {[%clk 0:02:48.6]} 12... fxe6
{[%clk 0:02:58.8]} 13. Bc4 {[%clk 0:02:42.1]} 13... Nxe4 {[%clk 0:02:58.8]} 14.
Nxe4 {[%clk 0:02:39.4]} 14... Bxh4+ {[%clk 0:02:58.7]} 15. g3 {[%clk 0:02:37.3]}
15... Bg5 {[%clk 0:02:58.7]} 16. Nxg5 {[%clk 0:02:34.4]} 16... hxg5 {[%clk
0:02:58.3]} 17. O-O {[%clk 0:02:19.6]} 17... Qc5 {[%clk 0:02:35.5]} 18. Qf2
{[%clk 0:02:00.1]} 18... Qxc4 {[%clk 0:02:29.2]} 19. Qf7+ {[%clk 0:01:59.1]}
19... Kd8 {[%clk 0:02:29.5]} 20. Qxg7 {[%clk 0:01:53.7]} 20... Re8 {[%clk
0:02:07.2]} 21. Qxg5+ {[%clk 0:01:51]} 21... Kc7 {[%clk 0:02:03.6]} 22. Qa5+
{[%clk 0:01:29.2]} 22... Kd7 {[%clk 0:01:27.8]} 23. Rf7+ {[%clk 0:01:23.7]}
23... Re7 {[%clk 0:01:28.2]} 24. Rxe7+ {[%clk 0:01:21.5]} 24... Kxe7 {[%clk
0:01:29.1]} 25. Qg5+ {[%clk 0:01:21.7]} 25... Kd7 {[%clk 0:01:20.1]} 26. Qg7+
{[%clk 0:01:19.7]} 26... Kd8 {[%clk 0:01:17]} 27. Qf8+ {[%clk 0:00:40.3]} 27...
Kc7 {[%clk 0:01:11.8]} 28. Qg7+ {[%clk 0:00:19.6]} 28... Bd7 {[%clk 0:01:11.2]}
29. Re1 {[%clk 0:00:13.2]} 29... e5 {[%clk 0:01:00.7]} 30. Nb3 {[%clk
0:00:06.5]} 30... Nc6 {[%clk 0:00:59.1]} 31. Qg5 {[%clk 0:00:05.8]} 31... Rf8
{[%clk 0:00:51.5]} 32. Qe3 {[%clk 0:00:05.4]} 0-1

[Event "*** SCC Grand Prix: Titled Tuesday Blitz"]
[Site "Chess.com"]
[Date "2020.06.23"]
[Round "5"]
[White "Kislov_Oleg"]
[Black "iaraldinho"]
[Result "0-1"]
[WhiteElo "2378"]
[BlackElo "2551"]
[TimeControl "180+1"]
[EndTime "10:56:12 PDT"]
[Termination "iaraldinho won on time"]

1. e4 {[%clk 0:03:00.9]} 1... c5 {[%clk 0:02:58.5]} 2. Nf3 {[%clk 0:03:00.4]}
2... a6 {[%clk 0:02:57.1]} 3. c3 {[%clk 0:03:00.1]} 3... d5 {[%clk 0:02:56.4]}
4. exd5 {[%clk 0:02:58.7]} 4... Qxd5 {[%clk 0:02:57.3]} 5. d4 {[%clk 0:02:58.8]}
5... cxd4 {[%clk 0:02:58.2]} 6. cxd4 {[%clk 0:02:58.6]} 6... Nf6 {[%clk
0:02:59.1]} 7. Nc3 {[%clk 0:02:58.6]} 7... Qd6 {[%clk 0:02:59.7]} 8. Bg5 {[%clk
0:02:56.5]} 8... Nc6 {[%clk 0:02:55.1]} 9. Be2 {[%clk 0:02:38.1]} 9... e6 {[%clk
0:02:52.9]} 10. O-O {[%clk 0:02:37.5]} 10... Be7 {[%clk 0:02:52.6]} 11. Re1
{[%clk 0:02:23.8]} 11... O-O {[%clk 0:02:51.6]} 12. Rc1 {[%clk 0:02:18.8]} 12...
Rd8 {[%clk 0:02:50.7]} 13. Be3 {[%clk 0:01:44.2]} 13... b5 {[%clk 0:02:49.1]}
14. Bd3 {[%clk 0:01:37.4]} 14... Bb7 {[%clk 0:02:48.7]} 15. Ne4 {[%clk
0:01:35.6]} 15... Nxe4 {[%clk 0:02:47.8]} 16. Bxe4 {[%clk 0:01:36.5]} 16... Rac8
{[%clk 0:02:47.3]} 17. a3 {[%clk 0:01:33.9]} 17... g6 {[%clk 0:02:36.5]} 18. Ne5
{[%clk 0:01:26.4]} 18... Nxd4 {[%clk 0:02:25]} 19. Bxd4 {[%clk 0:00:29.6]} 19...
Rxc1 {[%clk 0:02:21.9]} 20. Qxc1 {[%clk 0:00:28.9]} 20... Bxe4 {[%clk
0:02:08.5]} 21. Rxe4 {[%clk 0:00:29.1]} 21... Bf6 {[%clk 0:02:03]} 22. Nf3
{[%clk 0:00:27.7]} 22... e5 {[%clk 0:01:57.6]} 23. Bc3 {[%clk 0:00:26.8]} 23...
Qd5 {[%clk 0:01:55]} 24. Re1 {[%clk 0:00:24.9]} 24... Rc8 {[%clk 0:01:50.5]} 25.
Qe3 {[%clk 0:00:23.8]} 25... Re8 {[%clk 0:01:46.5]} 26. Qe4 {[%clk 0:00:24]}
26... Qb3 {[%clk 0:01:38.8]} 27. g4 {[%clk 0:00:15.7]} 27... a5 {[%clk
0:01:36.9]} 28. h4 {[%clk 0:00:14.8]} 28... h6 {[%clk 0:01:33.2]} 29. g5 {[%clk
0:00:14.4]} 29... hxg5 {[%clk 0:01:34.1]} 30. hxg5 {[%clk 0:00:15.2]} 30... Bg7
{[%clk 0:01:33.7]} 31. Kg2 {[%clk 0:00:15.8]} 31... Qe6 {[%clk 0:01:27.7]} 32.
Nxe5 {[%clk 0:00:13.3]} 32... b4 {[%clk 0:01:25.5]} 33. axb4 {[%clk 0:00:13.3]}
33... axb4 {[%clk 0:01:25.6]} 34. Bd4 {[%clk 0:00:13.7]} 34... Qd6 {[%clk
0:01:16.1]} 35. Qf4 {[%clk 0:00:11.1]} 35... Qd5+ {[%clk 0:01:15.2]} 36. Kg3
{[%clk 0:00:08.6]} 36... Rd8 {[%clk 0:01:09.9]} 37. Nf3 {[%clk 0:00:02.5]} 37...
Bxd4 {[%clk 0:01:08.9]} 38. Rd1 {[%clk 0:00:02.9]} 38... Bxf2+ {[%clk
0:01:08.3]} 39. Kxf2 {[%clk 0:00:03.2]} 39... Qxd1 {[%clk 0:01:08.7]} 40. Qxb4
{[%clk 0:00:02.4]} 40... Re8 {[%clk 0:00:59.9]} 0-1

[Event "*** SCC Grand Prix: Titled Tuesday Blitz"]
[Site "Chess.com"]
[Date "2020.06.23"]
[Round "5"]
[White "nitpicker"]
[Black "QueenOfTactics90"]
[Result "0-1"]
[WhiteElo "2157"]
[BlackElo "1945"]
[TimeControl "180+1"]
[EndTime "10:56:14 PDT"]
[Termination "QueenOfTactics90 won by resignation"]

1. d4 {[%clk 0:03:00.9]} 1... Nf6 {[%clk 0:02:58.6]} 2. c4 {[%clk 0:03:00.3]}
2... e6 {[%clk 0:02:59]} 3. g3 {[%clk 0:02:59.6]} 3... d5 {[%clk 0:02:59.5]} 4.
Nf3 {[%clk 0:02:59.6]} 4... c5 {[%clk 0:02:59.7]} 5. cxd5 {[%clk 0:02:59]} 5...
exd5 {[%clk 0:02:56.8]} 6. Bg2 {[%clk 0:02:59]} 6... Nc6 {[%clk 0:02:56.1]} 7.
O-O {[%clk 0:02:58.4]} 7... Be6 {[%clk 0:02:55.8]} 8. b3 {[%clk 0:02:55.6]} 8...
b6 {[%clk 0:02:52.4]} 9. Bb2 {[%clk 0:02:55.6]} 9... Be7 {[%clk 0:02:49.6]} 10.
Nbd2 {[%clk 0:02:45.7]} 10... O-O {[%clk 0:02:44.2]} 11. Rc1 {[%clk 0:02:44.5]}
11... Nxd4 {[%clk 0:02:36.2]} 12. Nxd4 {[%clk 0:02:42.2]} 12... cxd4 {[%clk
0:02:36.3]} 13. Bxd4 {[%clk 0:02:42.5]} 13... Rc8 {[%clk 0:02:36.3]} 14. Rxc8
{[%clk 0:02:34.5]} 14... Qxc8 {[%clk 0:02:36.2]} 15. Qb1 {[%clk 0:02:13.8]}
15... Qa6 {[%clk 0:02:34.1]} 16. Re1 {[%clk 0:02:03.4]} 16... Rc8 {[%clk
0:02:32.8]} 17. e4 {[%clk 0:01:51]} 17... dxe4 {[%clk 0:02:28.4]} 18. Nxe4
{[%clk 0:01:47.5]} 18... Nxe4 {[%clk 0:02:27.9]} 19. Bxe4 {[%clk 0:01:47]} 19...
Bb4 {[%clk 0:02:27.8]} 20. Bxh7+ {[%clk 0:01:39.4]} 20... Kf8 {[%clk 0:02:26.5]}
21. Re3 {[%clk 0:01:21.3]} 21... Bd2 {[%clk 0:02:20.2]} 22. Qb2 {[%clk
0:01:05.7]} 22... Bxe3 {[%clk 0:02:00.1]} 23. Bxg7+ {[%clk 0:01:03.1]} 23... Ke8
{[%clk 0:01:58.3]} 24. fxe3 {[%clk 0:01:03.1]} 24... Bh3 {[%clk 0:01:51.7]} 25.
Qe5+ {[%clk 0:00:56.9]} 25... Be6 {[%clk 0:01:49.5]} 26. Qb2 {[%clk 0:00:51]}
26... Qa5 {[%clk 0:01:16.9]} 27. Kf2 {[%clk 0:00:45.7]} 27... Qh5 {[%clk
0:01:11.8]} 28. Be4 {[%clk 0:00:35]} 28... Qxh2+ {[%clk 0:01:10.3]} 29. Bg2
{[%clk 0:00:35]} 29... Qh7 {[%clk 0:01:06.6]} 30. Bc3 {[%clk 0:00:28.5]} 30...
Qf5+ {[%clk 0:01:03]} 31. Kg1 {[%clk 0:00:27.6]} 31... Qd3 {[%clk 0:00:59.7]}
32. Bd4 {[%clk 0:00:21.9]} 32... Rc2 {[%clk 0:00:52.6]} 33. Qa3 {[%clk
0:00:19.4]} 33... Qd1+ {[%clk 0:00:50.9]} 34. Bf1 {[%clk 0:00:17.5]} 34... Bd5
{[%clk 0:00:42.7]} 35. Qa4+ {[%clk 0:00:16.4]} 35... Bc6 {[%clk 0:00:40.8]} 0-1

[Event "*** SCC Grand Prix: Titled Tuesday Blitz"]
[Site "Chess.com"]
[Date "2020.06.23"]
[Round "5"]
[White "otrov-11"]
[Black "Escanor89"]
[Result "0-1"]
[WhiteElo "2395"]
[BlackElo "2562"]
[TimeControl "180+1"]
[EndTime "10:56:16 PDT"]
[Termination "Escanor89 won by resignation"]

1. d4 {[%clk 0:03:00.9]} 1... Nf6 {[%clk 0:02:59.6]} 2. c4 {[%clk 0:03:00.3]}
2... g6 {[%clk 0:02:59.8]} 3. Nc3 {[%clk 0:02:59.4]} 3... Bg7 {[%clk 0:02:59.9]}
4. e4 {[%clk 0:02:59.5]} 4... d6 {[%clk 0:03:00.4]} 5. f4 {[%clk 0:03:00.2]}
5... O-O {[%clk 0:02:58]} 6. Nf3 {[%clk 0:03:00.4]} 6... c5 {[%clk 0:02:58]} 7.
d5 {[%clk 0:03:00.1]} 7... e6 {[%clk 0:02:57]} 8. Be2 {[%clk 0:02:59.9]} 8...
exd5 {[%clk 0:02:56.6]} 9. cxd5 {[%clk 0:03:00.8]} 9... Re8 {[%clk 0:02:56.3]}
10. Nd2 {[%clk 0:03:00.9]} 10... Na6 {[%clk 0:02:31.4]} 11. O-O {[%clk
0:02:57.2]} 11... Nc7 {[%clk 0:02:28.1]} 12. a4 {[%clk 0:02:57.2]} 12... a6
{[%clk 0:02:24.9]} 13. a5 {[%clk 0:02:49.9]} 13... Rb8 {[%clk 0:02:24.5]} 14.
Bf3 {[%clk 0:02:49.4]} 14... Nb5 {[%clk 0:02:19.3]} 15. Re1 {[%clk 0:02:09.3]}
15... Nd7 {[%clk 0:02:12.1]} 16. Nxb5 {[%clk 0:01:42.3]} 16... axb5 {[%clk
0:02:11.5]} 17. Qb3 {[%clk 0:01:43]} 17... b4 {[%clk 0:01:26]} 18. Nc4 {[%clk
0:01:31.9]} 18... Qc7 {[%clk 0:01:22.2]} 19. Be3 {[%clk 0:01:31]} 19... b5
{[%clk 0:01:19.6]} 20. axb6 {[%clk 0:01:30]} 20... Nxb6 {[%clk 0:01:19.6]} 21.
Bf2 {[%clk 0:01:17.4]} 21... Bd7 {[%clk 0:01:10.3]} 22. Nxb6 {[%clk 0:01:05.8]}
22... Qxb6 {[%clk 0:01:05.1]} 23. Rac1 {[%clk 0:00:58.4]} 23... Rbc8 {[%clk
0:00:53.1]} 24. Kh1 {[%clk 0:00:34.5]} 24... Qb5 {[%clk 0:00:48.8]} 25. Be2
{[%clk 0:00:31.2]} 25... Qa4 {[%clk 0:00:46]} 26. Bc4 {[%clk 0:00:29.4]} 26...
Qxb3 {[%clk 0:00:43]} 27. Bxb3 {[%clk 0:00:30.3]} 27... Bxb2 {[%clk 0:00:42.8]}
28. Rc2 {[%clk 0:00:27.2]} 28... Bc3 {[%clk 0:00:39.8]} 29. Rxc3 {[%clk
0:00:22.6]} 29... bxc3 {[%clk 0:00:38.4]} 30. Bc2 {[%clk 0:00:23.5]} 30... Rb8
{[%clk 0:00:35.6]} 31. e5 {[%clk 0:00:19.6]} 31... Rb2 {[%clk 0:00:35.3]} 32.
Re2 {[%clk 0:00:15.3]} 32... Bg4 {[%clk 0:00:33]} 0-1

[Event "*** SCC Grand Prix: Titled Tuesday Blitz"]
[Site "Chess.com"]
[Date "2020.06.23"]
[Round "5"]
[White "letsgoband"]
[Black "Orest_Vovk"]
[Result "1-0"]
[WhiteElo "2559"]
[BlackElo "2392"]
[TimeControl "180+1"]
[EndTime "10:56:19 PDT"]
[Termination "letsgoband won on time"]

1. e4 {[%clk 0:03:00.8]} 1... g5 {[%clk 0:02:59.8]} 2. d4 {[%clk 0:02:59.1]}
2... g4 {[%clk 0:02:59.6]} 3. h3 {[%clk 0:02:43.2]} 3... d5 {[%clk 0:02:47.8]}
4. e5 {[%clk 0:02:41.5]} 4... gxh3 {[%clk 0:02:43]} 5. Nxh3 {[%clk 0:02:41.9]}
5... c5 {[%clk 0:02:42.9]} 6. c3 {[%clk 0:02:41.9]} 6... Nc6 {[%clk 0:02:34.7]}
7. Nf4 {[%clk 0:02:40.7]} 7... cxd4 {[%clk 0:02:29.5]} 8. cxd4 {[%clk
0:02:40.8]} 8... Bf5 {[%clk 0:02:26.4]} 9. Nc3 {[%clk 0:02:38.5]} 9... e6 {[%clk
0:02:25.6]} 10. g4 {[%clk 0:02:22.3]} 10... Be4 {[%clk 0:02:06.4]} 11. f3 {[%clk
0:02:21.9]} 11... Bg6 {[%clk 0:02:00.5]} 12. Nxg6 {[%clk 0:02:07.4]} 12... fxg6
{[%clk 0:02:01.4]} 13. Be3 {[%clk 0:02:04.8]} 13... Qb6 {[%clk 0:01:56]} 14. Na4
{[%clk 0:02:04.5]} 14... Qa5+ {[%clk 0:01:49.9]} 15. Kf2 {[%clk 0:02:03.5]}
15... O-O-O {[%clk 0:01:37.7]} 16. a3 {[%clk 0:02:00.3]} 16... Kb8 {[%clk
0:01:14.4]} 17. b4 {[%clk 0:01:58.6]} 17... Qc7 {[%clk 0:01:12.6]} 18. Rc1
{[%clk 0:01:56.4]} 18... Qf7 {[%clk 0:00:59.5]} 19. Qd2 {[%clk 0:01:48.4]} 19...
h5 {[%clk 0:00:46]} 20. Be2 {[%clk 0:01:28.1]} 20... Bg7 {[%clk 0:00:33]} 21.
Kg3 {[%clk 0:01:20.4]} 21... hxg4 {[%clk 0:00:28.4]} 22. fxg4 {[%clk 0:01:19.9]}
22... Rxh1 {[%clk 0:00:26.8]} 23. Rxh1 {[%clk 0:01:20.8]} 23... Nge7 {[%clk
0:00:25.3]} 24. b5 {[%clk 0:01:21]} 24... Nxe5 {[%clk 0:00:22.9]} 25. dxe5
{[%clk 0:01:21.4]} 25... Bxe5+ {[%clk 0:00:23.2]} 26. Bf4 {[%clk 0:01:20.9]}
26... Bxf4+ {[%clk 0:00:17.7]} 27. Qxf4+ {[%clk 0:01:21.8]} 27... Qxf4+ {[%clk
0:00:17.9]} 28. Kxf4 {[%clk 0:01:22.4]} 28... Nc8 {[%clk 0:00:10.3]} 29. Ke5
{[%clk 0:01:20.9]} 29... d4 {[%clk 0:00:08]} 30. Bd3 {[%clk 0:01:18.8]} 30...
Rd5+ {[%clk 0:00:04.3]} 31. Kxe6 {[%clk 0:01:19.1]} 31... Rg5 {[%clk 0:00:04.9]}
32. Rh8 {[%clk 0:01:15.5]} 32... Kc7 {[%clk 0:00:04.8]} 33. Rh7+ {[%clk
0:01:14.6]} 33... Kb8 {[%clk 0:00:03.6]} 34. Rg7 {[%clk 0:00:43.4]} 34... Rxg4
{[%clk 0:00:02]} 35. Rxg6 {[%clk 0:00:43.8]} 35... Rxg6+ {[%clk 0:00:01.7]} 36.
Bxg6 {[%clk 0:00:44.7]} 1-0

[Event "*** SCC Grand Prix: Titled Tuesday Blitz"]
[Site "Chess.com"]
[Date "2020.06.23"]
[Round "5"]
[White "dosto07"]
[Black "Kapitan_Bayan"]
[Result "0-1"]
[WhiteElo "2160"]
[BlackElo "2443"]
[TimeControl "180+1"]
[EndTime "10:56:19 PDT"]
[Termination "Kapitan_Bayan won by resignation"]

1. e4 {[%clk 0:03:00.9]} 1... Nc6 {[%clk 0:02:58.5]} 2. Nf3 {[%clk 0:02:59.7]}
2... d6 {[%clk 0:02:55.4]} 3. d4 {[%clk 0:02:58.7]} 3... Bg4 {[%clk 0:02:55.3]}
4. Bb5 {[%clk 0:02:54]} 4... a6 {[%clk 0:02:48.3]} 5. Bxc6+ {[%clk 0:02:53.6]}
5... bxc6 {[%clk 0:02:49.2]} 6. Nc3 {[%clk 0:02:53]} 6... g6 {[%clk 0:02:47.2]}
7. h3 {[%clk 0:02:51.9]} 7... Bxf3 {[%clk 0:02:44.9]} 8. Qxf3 {[%clk 0:02:51.6]}
8... Bg7 {[%clk 0:02:45.8]} 9. Be3 {[%clk 0:02:48.6]} 9... Nf6 {[%clk
0:02:40.8]} 10. O-O-O {[%clk 0:02:42.4]} 10... d5 {[%clk 0:02:34.3]} 11. e5
{[%clk 0:02:37]} 11... Nd7 {[%clk 0:02:33.1]} 12. h4 {[%clk 0:02:34.4]} 12...
O-O {[%clk 0:02:16.3]} 13. h5 {[%clk 0:02:31.3]} 13... e6 {[%clk 0:02:06.7]} 14.
hxg6 {[%clk 0:02:26.8]} 14... fxg6 {[%clk 0:02:00.6]} 15. Qh3 {[%clk 0:02:26.4]}
15... Kf7 {[%clk 0:01:28.5]} 16. Qf3+ {[%clk 0:02:18.3]} 16... Kg8 {[%clk
0:01:27.2]} 17. Qg4 {[%clk 0:02:10.5]} 17... Qe7 {[%clk 0:01:22.4]} 18. Bg5
{[%clk 0:01:50.6]} 18... Qf7 {[%clk 0:01:21.9]} 19. f4 {[%clk 0:01:48.2]} 19...
c5 {[%clk 0:01:13.9]} 20. Ne2 {[%clk 0:01:41.8]} 20... a5 {[%clk 0:00:55.1]} 21.
Rh3 {[%clk 0:01:35.6]} 21... h5 {[%clk 0:00:46.7]} 22. Qf3 {[%clk 0:01:31.1]}
22... cxd4 {[%clk 0:00:46.8]} 23. Nxd4 {[%clk 0:01:21.4]} 23... c5 {[%clk
0:00:45.8]} 24. Ne2 {[%clk 0:01:08.9]} 24... Qf5 {[%clk 0:00:28.6]} 25. Rh4
{[%clk 0:00:45.3]} 25... Nxe5 {[%clk 0:00:25.9]} 26. Qa3 {[%clk 0:00:32.1]}
26... Nc4 {[%clk 0:00:24.6]} 27. Qa4 {[%clk 0:00:18.8]} 27... Bxb2+ {[%clk
0:00:22.5]} 28. Kb1 {[%clk 0:00:18.5]} 28... Rab8 {[%clk 0:00:21.4]} 29. Qd7
{[%clk 0:00:15.3]} 29... Bd4+ {[%clk 0:00:13.2]} 30. Kc1 {[%clk 0:00:14.6]}
30... Be3+ {[%clk 0:00:13.4]} 0-1

[Event "*** SCC Grand Prix: Titled Tuesday Blitz"]
[Site "Chess.com"]
[Date "2020.06.23"]
[Round "5"]
[White "baby_leo"]
[Black "imdarealist"]
[Result "0-1"]
[WhiteElo "1965"]
[BlackElo "2309"]
[TimeControl "180+1"]
[EndTime "10:56:20 PDT"]
[Termination "imdarealist won on time"]

1. Nf3 {[%clk 0:03:00.9]} 1... d5 {[%clk 0:02:59.4]} 2. d4 {[%clk 0:02:53.3]}
2... Nf6 {[%clk 0:02:58.5]} 3. c4 {[%clk 0:02:48.3]} 3... e6 {[%clk 0:02:58.6]}
4. Nc3 {[%clk 0:02:45.5]} 4... Be7 {[%clk 0:02:58.2]} 5. Bf4 {[%clk 0:02:44]}
5... O-O {[%clk 0:02:55.6]} 6. e3 {[%clk 0:02:43.3]} 6... b6 {[%clk 0:02:55.7]}
7. cxd5 {[%clk 0:02:35.7]} 7... Nxd5 {[%clk 0:02:56.6]} 8. Nxd5 {[%clk 0:02:34]}
8... Qxd5 {[%clk 0:02:57.5]} 9. a3 {[%clk 0:02:12.6]} 9... c5 {[%clk 0:02:54.2]}
10. dxc5 {[%clk 0:02:01.9]} 10... Qxd1+ {[%clk 0:02:48.5]} 11. Rxd1 {[%clk
0:02:00.5]} 11... bxc5 {[%clk 0:02:35.8]} 12. Bb5 {[%clk 0:01:51.7]} 12... Ba6
{[%clk 0:02:28.4]} 13. Bxa6 {[%clk 0:01:44.1]} 13... Nxa6 {[%clk 0:02:29.3]} 14.
O-O {[%clk 0:01:36.9]} 14... Rfd8 {[%clk 0:02:06.9]} 15. h3 {[%clk 0:01:35.5]}
15... c4 {[%clk 0:02:01.1]} 16. Rc1 {[%clk 0:01:18.2]} 16... Rac8 {[%clk
0:01:57.4]} 17. Ne5 {[%clk 0:01:17.4]} 17... c3 {[%clk 0:01:51.7]} 18. Rxc3
{[%clk 0:01:08.6]} 18... Rxc3 {[%clk 0:01:41.8]} 19. bxc3 {[%clk 0:01:09.5]}
19... Rc8 {[%clk 0:01:42.2]} 20. c4 {[%clk 0:01:07.8]} 20... f6 {[%clk
0:01:28.9]} 21. Nd3 {[%clk 0:00:55.5]} 21... e5 {[%clk 0:01:25.4]} 22. Bg3
{[%clk 0:00:53.5]} 22... Rxc4 {[%clk 0:01:25.7]} 23. f4 {[%clk 0:00:42.5]} 23...
e4 {[%clk 0:01:14.4]} 24. Nb2 {[%clk 0:00:26.3]} 24... Rc3 {[%clk 0:01:07.1]}
25. a4 {[%clk 0:00:23.8]} 25... Bc5 {[%clk 0:01:04.1]} 26. Nd1 {[%clk
0:00:20.8]} 26... Ra3 {[%clk 0:01:01.6]} 27. Bf2 {[%clk 0:00:16]} 27... Rxa4
{[%clk 0:00:57.7]} 28. Nc3 {[%clk 0:00:16.5]} 28... Rc4 {[%clk 0:00:57.6]} 29.
Ra1 {[%clk 0:00:14]} 29... Nb4 {[%clk 0:00:43]} 30. Na4 {[%clk 0:00:13]} 30...
Nc2 {[%clk 0:00:35.3]} 31. Rc1 {[%clk 0:00:08.5]} 31... Ba3 {[%clk 0:00:26.5]}
32. Rb1 {[%clk 0:00:02.3]} 32... Rxa4 {[%clk 0:00:25.2]} 0-1